bitfinex/quotes_ETHUSD_20220118
["timestamp","ask_amount","ask_price","bid_price","bid_amount"]
[1642472275503,2.388466,3214.5,3214.3,0.447]
[1642472275699,2.388466,3214.5,3214.4,0.1244]
[1642472277005,2.388466,3214.5,3214.4,1.28643606]
[1642472277305,2.388466,3214.5,3214.4,1.32061682]
[1642472277706,2.096366,3214.5,3214.4,1.19621682]
[1642472277905,2.096366,3214.5,3214.4,1.64321682]
[1642472278308,2.096366,3214.5,3214.4,2.97831319]
[1642472279750,3.8226,3214.8,3214.4,2.97831319]
[1642472279952,1.54723929,3214.9,3214.4,2.97831319]
[1642472280351,0.00170527,3214.8,3214.4,2.97831319]
[1642472280754,0.00113685,3214.7,3214.4,2.97831319]
[1642472281152,0.00170527,3214.8,3214.4,2.97831319]
[1642472281652,0.40200195,3214.6,3214.4,2.97831319]
[1642472283011,1.65504124,3214.7,3214.4,2.97831319]
[1642472283414,1.65617809,3214.7,3214.4,2.97831319]
[1642472283612,1.65617809,3214.7,3214.4,1.64321682]
[1642472284012,1.54723929,3214.6,3214.4,1.64321682]
[1642472285013,1.54723929,3214.5,3214.4,1.64321682]
[1642472285214,1.54723929,3214.5,3214.4,3.12276598]
[1642472285612,1.54723929,3214.6,3214.4,3.12276598]
[1642472286015,1.54723929,3214.6,3214.4,0.48118076]
[1642472287154,0.00113685,3214.7,3214.4,0.447]
[1642472287155,1.54723929,3214.5,3214.4,0.447]
[1642472287363,1.54723929,3214.5,3214.3,0.00113685]
[1642472287754,1.54723929,3214.5,3214.1,0.00227369]
[1642472288055,1.24873929,3214.5,3214.1,0.00227369]
[1642472289755,2.32087569,3214.6,3214.1,0.00227369]
[1642472293009,2.02887569,3214.6,3214.1,0.00227369]
[1642472295150,0.00113685,3214.7,3214.1,0.00227369]
[1642472296555,3.09469072,3214.7,3214.1,0.00227369]
[1642472297596,1.55289114,3214.2,3214.1,0.00227369]
[1642472298197,1.25129114,3214.2,3214.1,0.00227369]
[1642472298398,3.66367566,3214.2,3214.1,0.00227369]
[1642472299304,1.25129114,3214.2,3214.1,0.00227369]
[1642472303055,3.66367566,3214.2,3214.1,0.00227369]
[1642472303255,3.37227566,3214.2,3214.1,0.00227369]
[1642472305599,3.37227566,3214.2,3214.1,0.57367369]
[1642472305799,3.37227566,3214.2,3214.1,0.87367369]
[1642472306002,3.37227566,3214.2,3214.1,0.60944769]
[1642472306203,3.37227566,3214.2,3214.1,0.57367369]
[1642472307005,2.41238452,3214.2,3214.1,0.57367369]
[1642472307205,2.41238452,3214.2,3214.1,0.76518462]
[1642472307506,2.41238452,3214.2,3214.1,0.7976489]
[1642472308407,2.11438452,3214.2,3214.1,0.7976489]
[1642472308855,2.11438452,3214.2,3214.1,1.0976489]
[1642472309948,2.11438452,3214.2,3214.1,3.12092446]
[1642472310350,2.11438452,3214.2,3214.1,2.0976489]
[1642472310553,2.11438452,3214.2,3214.1,1.0976489]
[1642472310854,2.11438452,3214.2,3214.1,3.7976489]
[1642472311052,2.11438452,3214.2,3214.1,4.7976489]
[1642472311254,2.11438452,3214.2,3214.1,2.0976489]
[1642472311655,2.11438452,3214.2,3214.1,1.0976489]
[1642472312055,2.11438452,3214.2,3214.1,0.7976489]
[1642472312457,2.11438452,3214.2,3214.1,0.6732489]
[1642472313500,1.81888452,3214.2,3214.1,0.6732489]
[1642472314503,1.81888452,3214.2,3214.1,2.47225222]
[1642472314702,1.81888452,3214.2,3214.1,0.6732489]
[1642472315305,1.81888452,3214.2,3214.1,2.50875682]
[1642472316362,1.81888452,3214.2,3214.1,0.6732489]
[1642472316558,1.81888452,3214.2,3214.1,2.50544174]
[1642472316758,1.81888452,3214.2,3214.1,0.6732489]
[1642472317860,1.81888452,3214.2,3214.1,0.67097521]
[1642472318461,1.81888452,3214.2,3214.1,2.51500036]
[1642472318661,1.52028452,3214.2,3214.1,2.51500036]
[1642472318861,1.52028452,3214.2,3214.1,2.51571618]
[1642472319062,1.52028452,3214.2,3214.1,2.510586]
[1642472320502,1.52028452,3214.2,3214.1,0.67097521]
[1642472324049,1.22308452,3214.2,3214.1,0.67097521]
[1642472329005,0.92108452,3214.2,3214.1,0.67097521]
[1642472334060,0.62958452,3214.2,3214.1,0.67097521]
[1642472335509,0.62958452,3214.2,3214.1,1.09537521]
[1642472338614,0.62958452,3214.2,3214.1,0.97097521]
[1642472339256,0.32778452,3214.2,3214.1,2.06725202]
[1642472339458,0.32778452,3214.2,3214.1,0.97097521]
[1642472339657,0.32778452,3214.2,3214.1,2.063731]
[1642472339858,0.32778452,3214.2,3214.1,2.05204339]
[1642472340057,0.32778452,3214.2,3214.1,0.97097521]
[1642472340265,0.32778452,3214.2,3214.1,2.06728566]
[1642472340465,0.32778452,3214.2,3214.1,0.97097521]
[1642472341264,0.32778452,3214.2,3214.1,2.19216186]
[1642472341464,0.32778452,3214.2,3214.1,1.09537521]
[1642472343601,0.32778452,3214.2,3214.1,0.79537521]
[1642472344006,0.32778452,3214.2,3214.1,0.67097521]
[1642472344608,0.03108452,3214.2,3214.1,0.67097521]
[1642472345013,0.03108452,3214.2,3214.1,0.97097521]
[1642472346357,0.03108452,3214.2,3214.1,1.09537521]
[1642472346756,0.03108452,3214.2,3214.1,6.67637521]
[1642472346956,0.03108452,3214.2,3214.1,7.67637521]
[1642472349564,1.28522793,3214.7,3214.1,6.67637521]
[1642472349763,1.28522793,3214.7,3214.2,0.1244]
[1642472349963,1.147,3214.8,3214.3,0.447]
[1642472350201,9.6428703,3215.0,3214.3,0.447]
[1642472350401,5.9930703,3215.0,3214.3,0.78656838]
[1642472350601,0.00227369,3214.9,3214.3,0.78656838]
[1642472350804,2.33224399,3214.9,3214.3,0.78656838]
[1642472351009,0.00170527,3214.8,3214.3,0.78656838]
[1642472351408,0.00113685,3214.7,3214.3,0.78656838]
[1642472352109,0.00113685,3214.7,3214.3,0.447]
[1642472354656,5.70110715,3215.0,3214.3,0.447]
[1642472354856,5.70110715,3215.0,3214.4,0.00170527]
[1642472355056,0.00113684,3214.9,3214.5,0.447]
[1642472355660,0.39111298,3214.8,3214.5,0.447]
[1642472359311,1.95189967,3214.8,3214.5,0.447]
[1642472359714,1.65919967,3214.8,3214.5,0.447]
[1642472359915,1.56078669,3214.8,3214.5,0.447]
[1642472361118,1.56192353,3214.9,3214.5,0.447]
[1642472362158,0.00113684,3214.9,3214.5,0.447]
[1642472364162,0.00113684,3214.9,3214.5,2.07787317]
[1642472364359,0.00113684,3214.9,3214.5,2.11197351]
[1642472364560,0.00113684,3214.9,3214.5,2.41197351]
[1642472364760,1.26882353,3215.0,3214.5,2.41197351]
[1642472364960,1.26882353,3215.0,3214.6,0.00170527]
[1642472365201,1.26882353,3215.0,3214.8,1.19070084]
[1642472365402,1.26882353,3215.0,3214.8,1.22452163]
[1642472366606,1.1444,3215.2,3214.8,1.22452163]
[1642472366809,3.9085,3215.3,3214.8,1.22452163]
[1642472367008,0.00113685,3215.1,3214.8,1.22452163]
[1642472369854,2.3299703,3215.3,3214.9,0.2133774]
[1642472369855,4.4339633,3215.3,3214.9,0.2133774]
[1642472370059,4.4339633,3215.3,3214.9,0.21451425]
[1642472370660,2.39655615,3215.3,3214.9,0.21451425]
[1642472372707,2.39655615,3215.3,3214.9,0.00113685]
[1642472373409,2.39655615,3215.3,3214.8,0.00170527]
[1642472374009,2.39655615,3215.3,3214.8,0.21994981]
[1642472374308,2.39655615,3215.3,3214.9,0.00113685]
[1642472374908,1.27112927,3215.0,3214.9,0.00113685]
[1642472377557,2.39655615,3215.3,3214.9,0.00113685]
[1642472378558,2.3450358,3215.2,3214.9,0.00113685]
[1642472379961,2.0524358,3215.2,3214.9,0.00113685]
[1642472380214,0.38021172,3215.1,3214.9,0.00113685]
[1642472380616,2.77676787,3215.1,3214.9,0.00113685]
[1642472381017,2.77676787,3215.1,3214.8,0.00170527]
[1642472381417,2.39655615,3215.0,3214.4,0.12837896]
[1642472381618,2.39655615,3215.0,3214.5,0.00341054]
[1642472381619,2.77676787,3215.0,3214.5,0.00341054]
[1642472381818,2.77676787,3215.0,3214.6,0.1244]
[1642472382220,2.77676787,3215.0,3214.7,0.00227369]
[1642472382418,2.39655615,3214.9,3214.7,0.00227369]
[1642472383019,0.38021172,3214.8,3214.7,0.00227369]
[1642472383221,2.77676787,3214.8,3214.7,0.00227369]
[1642472383723,2.77676787,3214.8,3214.5,0.00341054]
[1642472383961,2.77676787,3214.8,3214.6,0.1244]
[1642472384262,2.77676787,3214.8,3214.7,0.00227369]
[1642472384662,1.55862992,3214.9,3214.7,0.00227369]
[1642472384862,1.55862992,3214.9,3214.5,0.00341054]
[1642472385063,1.26402992,3214.9,3214.6,0.1244]
[1642472385365,8.18512539,3215.4,3214.7,0.00227369]
[1642472385763,0.00113685,3215.3,3214.7,0.00227369]
[1642472385963,0.57151189,3215.3,3214.5,0.00341054]
[1642472386164,2.6635174,3215.3,3214.5,0.00341054]
[1642472386764,2.6635174,3215.3,3214.4,0.00397896]
[1642472387607,2.09314236,3215.3,3214.4,0.00397896]
[1642472388309,5.18669623,3215.3,3214.4,0.00397896]
[1642472388511,5.91199623,3215.3,3214.4,0.00397896]
[1642472388711,1.21744325,3214.8,3214.4,0.00397896]
[1642472388909,1.21744325,3214.8,3214.1,0.00568423]
[1642472389308,18.16,3214.7,3214.1,0.00568423]
[1642472389508,1.21744325,3214.8,3214.1,0.00568423]
[1642472389509,1.35330535,3214.3,3214.1,0.00568423]
[1642472389707,2.27010535,3214.3,3214.1,0.00568423]
[1642472389908,2.27010535,3214.3,3213.3,2.60475889]
[1642472389909,2.27010535,3214.3,3213.4,0.0096632]
[1642472390110,1.97810535,3214.3,3213.4,0.0096632]
[1642472390912,2.13150541,3214.2,3213.4,0.0096632]
[1642472391757,2.13150541,3214.2,3213.4,1.31207945]
[1642472392257,2.13150541,3214.2,3213.5,0.00909478]
[1642472392456,2.10105078,3214.3,3213.5,0.00909478]
[1642472392656,2.10126138,3214.3,3213.5,0.00909478]
[1642472392858,3.79333652,3214.4,3213.5,0.00909478]
[1642472393058,2.33688578,3214.3,3213.5,0.00909478]
[1642472393262,4.45556004,3214.3,3213.5,0.00909478]
[1642472393459,2.33688578,3214.3,3213.5,0.00909478]
[1642472393660,4.46622104,3214.3,3213.6,0.1244]
[1642472393860,2.33688578,3214.3,3213.6,0.1244]
[1642472394060,3.79333652,3214.4,3213.7,0.00795793]
[1642472394661,3.79333652,3214.4,3213.5,0.1244]
[1642472394662,2.12589928,3214.3,3213.6,0.00852635]
[1642472394866,1.55629129,3214.2,3213.6,0.00852635]
[1642472395103,1.27095123,3214.2,3213.5,0.00909478]
[1642472396003,2.12589928,3214.3,3213.5,0.00909478]
[1642472396406,1.2444,3214.3,3213.5,0.00909478]
[1642472396607,3.39521081,3214.3,3213.5,0.00909478]
[1642472396806,1.2444,3214.3,3213.5,0.00909478]
[1642472397010,1.2444,3214.3,3213.6,0.13319667]
[1642472397407,1.2444,3214.3,3213.7,0.00795793]
[1642472398710,1.2444,3214.3,3213.8,0.13319667]
[1642472398711,2.33688578,3214.2,3213.8,0.13319667]
[1642472399161,2.33688578,3214.2,3213.9,0.00682108]
[1642472399764,2.33688578,3214.1,3214.0,0.1244]
[1642472400167,2.42502871,3214.1,3214.0,0.13065266]
[1642472400366,2.42502871,3214.1,3214.0,0.00625266]
[1642472400767,2.42502871,3214.1,3213.9,0.00682108]
[1642472400970,2.42502871,3214.1,3214.0,0.1244]
[1642472401167,4.9200766,3214.1,3214.0,0.1244]
[1642472401370,4.9200766,3214.1,3214.0,0.13065266]
[1642472401568,4.9200766,3214.1,3214.0,0.00625266]
[1642472401967,2.87479082,3214.1,3214.0,0.00625266]
[1642472404015,2.87479082,3214.1,3214.0,0.13943851]
[1642472404715,2.87479082,3214.1,3214.0,0.26383851]
[1642472405120,2.58509082,3214.1,3214.0,0.26383851]
[1642472406366,2.49504789,3214.1,3214.0,0.26383851]
[1642472407363,1.55951654,3214.3,3214.0,0.26383851]
[1642472407563,1.55951654,3214.3,3214.0,0.13943851]
[1642472407763,1.55951654,3214.3,3214.1,0.00568423]
[1642472408263,1.55951654,3214.3,3214.1,0.13887008]
[1642472408666,1.55951654,3214.3,3214.2,0.00511581]
[1642472409265,2.33783355,3214.4,3214.2,0.00511581]
[1642472409464,2.33783355,3214.4,3213.9,0.00682108]
[1642472410106,2.33783355,3214.4,3214.0,0.1244]
[1642472410306,2.04143355,3214.4,3214.0,0.1244]
[1642472410508,2.49504789,3214.5,3214.1,0.00568423]
[1642472411106,2.49504789,3214.5,3214.0,0.00625266]
[1642472411310,2.49504789,3214.3,3214.1,0.1331781]
[1642472411710,2.49504789,3214.3,3214.2,0.00511581]
[1642472412311,4.53648144,3214.5,3214.2,0.00511581]
[1642472413710,4.53648144,3214.5,3214.0,0.00625266]
[1642472414359,4.53648144,3214.5,3213.9,0.00682108]
[1642472414763,1.34102629,3214.2,3213.9,0.00682108]
[1642472414963,2.13161584,3214.1,3213.9,0.00682108]
[1642472415361,1.84709743,3214.1,3213.9,0.00682108]
[1642472416765,3.38245984,3214.2,3213.9,0.00682108]
[1642472416766,4.25203967,3214.0,3213.9,0.00682108]
[1642472417265,6.74708756,3214.0,3213.9,0.00682108]
[1642472417609,5.75,3213.9,3212.7,0.1244]
[1642472417810,2.76809651,3213.8,3212.7,0.1244]
[1642472418008,20.92809651,3213.8,3212.8,0.00625266]
[1642472418210,2.76809651,3213.8,3212.8,0.00625266]
[1642472418410,2.2238,3213.9,3213.8,0.33190349]
[1642472418612,4.3,3213.8,3212.8,0.00625266]
[1642472420611,3.9952,3213.8,3212.8,0.00625266]
[1642472420812,3.9952,3213.8,3212.7,0.00682108]
[1642472421013,3.9952,3213.8,3212.7,1.45440883]
[1642472421364,3.9952,3213.8,3212.9,0.13323192]
[1642472421564,22.1552,3213.8,3212.9,0.13323192]
[1642472421764,22.1552,3213.8,3213.0,0.00511581]
[1642472422362,0.01135761,3213.7,3213.0,0.00511581]
[1642472422563,0.01135761,3213.7,3213.6,0.04372859]
[1642472422964,3.76135761,3213.7,3213.6,0.00170527]
[1642472423166,21.92135761,3213.7,3213.6,0.00170527]
[1642472423365,21.92135761,3213.7,3212.9,0.00568424]
[1642472423568,21.92135761,3213.7,3213.1,0.13323192]
[1642472423967,21.92135761,3213.7,3213.2,0.00397897]
[1642472424370,3.23945399,3213.6,3213.2,0.00397897]
[1642472424667,3.23945399,3213.6,3212.3,0.00909478]
[1642472424966,1.32466177,3213.5,3213.2,0.01037795]
[1642472425211,19.48466177,3213.5,3213.2,0.01037795]
[1642472425408,19.48466177,3213.5,3213.3,0.00341054]
[1642472425409,20.62336177,3213.5,3213.3,0.00341054]
[1642472425810,20.32386177,3213.5,3213.3,0.00341054]
[1642472426010,19.2987,3213.5,3213.3,0.00341054]
[1642472426210,1.1387,3213.5,3213.3,0.00341054]
[1642472426415,3.23945399,3213.4,3213.3,0.00341054]
[1642472427016,7.09125399,3213.4,3213.3,0.00341054]
[1642472427313,3.8518,3213.4,3213.3,0.00341054]
[1642472427514,3.8518,3213.4,3213.2,0.01037795]
[1642472427714,3.25,3213.3,3213.2,0.01037795]
[1642472429660,7.09125399,3213.4,3213.2,0.01037795]
[1642472430956,6.79205399,3213.4,3213.2,0.01037795]
[1642472431159,3.5526,3213.4,3213.2,0.01037795]
[1642472434211,4.99625673,3213.3,3213.2,0.01037795]
[1642472435112,4.99625673,3213.3,3212.5,0.1244]
[1642472435313,20.82477238,3213.3,3212.5,0.1244]
[1642472435514,20.82477238,3213.3,3212.6,0.00397897]
[1642472435712,1.16896552,3212.7,3212.6,0.00397897]
[1642472435912,2.16896552,3212.7,3212.6,0.00397897]
[1642472436112,0.87016552,3212.7,3212.6,0.00397897]
[1642472436563,0.87016552,3212.7,3212.2,0.00625266]
[1642472436764,0.87016552,3212.7,3212.1,0.00682108]
[1642472437164,0.87016552,3212.7,3212.5,0.02042182]
[1642472437564,2.55459726,3212.8,3212.5,0.02042182]
[1642472437766,2.0,3212.7,3212.5,0.02042182]
[1642472437964,2.0,3212.7,3212.0,0.00738951]
[1642472437965,1.01280733,3212.6,3212.0,0.00738951]
[1642472438165,18.16,3212.5,3212.0,0.00738951]
[1642472438363,1.0,3212.1,3212.0,0.00738951]
[1642472439364,2.30907531,3212.1,3212.0,0.00738951]
[1642472439968,4.9779474,3212.1,3212.0,0.00738951]
[1642472440407,7.15898188,3212.1,3212.0,0.00738951]
[1642472440607,2.2,3212.0,3211.9,0.1245]
[1642472441208,3.9779474,3212.1,3211.9,0.1245]
[1642472441414,6.30943175,3212.1,3211.9,0.1245]
[1642472441611,5.00035644,3212.1,3211.9,0.1245]
[1642472441811,5.00035644,3212.1,3211.2,2.22883085]
[1642472442011,5.00035644,3212.1,3211.3,0.1245]
[1642472442012,1.0,3212.0,3211.3,0.1245]
[1642472442211,5.00035644,3212.1,3211.3,0.12847896]
[1642472442614,4.21591665,3212.0,3211.3,0.12847896]
[1642472442814,0.36968036,3211.9,3211.3,0.12847896]
[1642472443615,2.66477238,3211.8,3211.3,0.12847896]
[1642472445063,2.66887164,3211.8,3211.3,0.12847896]
[1642472445662,2.79337164,3211.8,3211.3,0.00397896]
[1642472446062,2.79337164,3211.8,3211.0,0.00568423]
[1642472446063,4.34451591,3211.8,3211.0,0.00568423]
[1642472446266,3.92941591,3211.8,3211.1,0.1245]
[1642472446663,1.92082463,3211.9,3211.2,0.00454739]
[1642472447264,1.92082463,3211.9,3210.9,0.1245]
[1642472447265,1.92082463,3211.9,3211.0,0.00568423]
[1642472447466,1.92082463,3211.9,3211.1,0.1245]
[1642472447712,1.92082463,3211.9,3211.0,0.00568423]
[1642472447916,1.92082463,3211.9,3211.2,0.00454739]
[1642472448112,1.92082463,3211.9,3211.0,0.00568423]
[1642472450516,1.92082463,3211.9,3211.1,0.1245]
[1642472450916,1.92082463,3211.9,3211.2,0.00454739]
[1642472451403,1.25814427,3211.8,3211.2,0.00454739]
[1642472451586,1.25814427,3211.8,3211.0,0.00568423]
[1642472451786,1.25814427,3211.8,3211.1,0.1245]
[1642472452188,2.25814427,3211.8,3211.2,0.00454739]
[1642472452389,1.25814427,3211.8,3211.2,0.00454739]
[1642472452689,1.25814427,3211.8,3211.0,0.00568423]
[1642472453688,0.36968036,3211.9,3211.0,0.00568423]
[1642472460461,0.1245,3211.8,3211.0,0.00568423]
[1642472461261,1.35362216,3211.6,3211.0,0.00568423]
[1642472462918,1.35362216,3211.6,3210.9,0.00625266]
[1642472463121,2.4491,3211.8,3210.8,0.00682108]
[1642472463319,1.3655,3211.8,3210.8,0.00682108]
[1642472464824,2.67011736,3211.8,3210.8,0.00682108]
[1642472465723,3.67011736,3211.8,3210.8,0.00682108]
[1642472467374,3.68111385,3211.8,3210.8,0.00682108]
[1642472468978,2.16425731,3211.7,3210.8,0.00682108]
[1642472469175,0.1245,3211.6,3210.8,0.00682108]
[1642472469976,1.29203821,3211.2,3210.8,0.00682108]
[1642472470417,1.2562621,3211.6,3210.8,0.00682108]
[1642472470418,0.1245,3211.6,3210.8,0.00682108]
[1642472470823,0.1245,3211.7,3210.8,0.01910216]
[1642472471224,0.1245,3211.7,3210.9,0.00625266]
[1642472471425,6.09929649,3211.8,3211.0,0.1245]
[1642472471625,6.09929649,3211.8,3211.0,1.42314835]
[1642472471626,5.09929649,3211.8,3211.0,1.42314835]
[1642472471825,6.09929649,3211.8,3211.1,0.00511581]
[1642472472225,5.09929649,3211.8,3211.1,0.00511581]
[1642472475174,2.66586945,3211.7,3211.1,0.00511581]
[1642472476174,2.66586945,3211.7,3211.0,0.00568423]
[1642472476374,2.66586945,3211.7,3210.8,0.00682108]
[1642472476581,2.66586945,3211.7,3210.9,0.1245]
[1642472476981,1.53786052,3211.6,3211.0,0.00568423]
[1642472477617,1.53786052,3211.6,3210.8,0.00682108]
[1642472477816,4.20372997,3211.7,3210.9,0.1245]
[1642472478315,4.20372997,3211.7,3211.0,0.00568423]
[1642472478715,2.66586945,3211.7,3211.0,0.00568423]
[1642472478919,2.66586945,3211.7,3210.9,0.00625266]
[1642472480718,4.20372997,3211.7,3210.9,0.00625266]
[1642472481571,4.20372997,3211.7,3210.7,1.39240344]
[1642472481774,0.00397897,3211.6,3210.7,1.83940344]
[1642472481972,1.54183949,3211.6,3210.7,0.447]
[1642472482175,0.12791055,3211.5,3210.7,0.447]
[1642472482572,0.00284212,3211.4,3210.7,0.447]
[1642472482772,0.1245,3211.3,3210.7,0.447]
[1642472482973,0.1267737,3211.3,3210.7,0.447]
[1642472483172,0.00170527,3211.2,3210.7,0.447]
[1642472483572,0.00113685,3211.1,3210.7,0.447]
[1642472483974,2.66586945,3211.2,3210.7,0.447]
[1642472484377,0.00113685,3211.1,3210.7,0.447]
[1642472487421,0.12279948,3211.0,3210.7,0.447]
[1642472488422,2.66586945,3210.9,3210.7,0.447]
[1642472496874,2.66586945,3210.9,3210.7,0.347]
[1642472506368,2.79036945,3210.9,3210.7,0.347]
[1642472507719,2.66586945,3210.9,3210.7,0.347]
[1642472507919,2.66586945,3210.8,3210.7,0.347]
[1642472508320,2.66586945,3210.8,3210.7,0.34813684]
[1642472508521,2.66586945,3210.9,3210.7,0.34813684]
[1642472511569,2.66586945,3210.9,3210.8,5.23590447]
[1642472511770,2.66586945,3210.9,3210.8,4.62885735]
[1642472511969,2.66586945,3210.9,3210.8,5.85198545]
[1642472512774,0.12279948,3211.0,3210.8,5.97648545]
[1642472512970,0.12279948,3211.0,3210.9,2.02314947]
[1642472513170,0.12279948,3211.0,3210.9,2.77014947]
[1642472517225,3.8473,3211.8,3210.9,2.77014947]
[1642472517422,3.8473,3211.8,3210.9,2.61382316]
[1642472517622,0.00454739,3211.7,3210.9,0.77819044]
[1642472517825,0.00454739,3211.7,3210.9,0.447]
[1642472518023,0.12847897,3211.6,3210.9,2.16882786]
[1642472518224,0.00397897,3211.6,3210.9,0.447]
[1642472518422,0.00341055,3211.5,3210.9,0.447]
[1642472518871,0.00284212,3211.4,3210.9,2.16600452]
[1642472519073,0.00284212,3211.4,3210.9,2.20177757]
[1642472519272,0.0022737,3211.3,3210.9,2.16600452]
[1642472519474,0.0022737,3211.3,3210.9,2.20589803]
[1642472519673,0.00170527,3211.2,3210.9,2.16600452]
[1642472519873,0.00170527,3211.2,3210.9,2.50301315]
[1642472520078,4.20341976,3211.7,3211.1,0.00800898]
[1642472520277,4.20341976,3211.7,3211.2,0.447]
[1642472520479,0.00397897,3211.6,3211.2,0.447]
[1642472520875,0.00341055,3211.5,3211.2,0.447]
[1642472521275,0.00284212,3211.4,3211.2,0.447]
[1642472521681,0.0022737,3211.3,3211.2,0.447]
[1642472532029,0.0022737,3211.3,3211.1,0.00800898]
[1642472532332,0.00170527,3211.2,3211.1,0.00800898]
[1642472534866,0.00170527,3211.2,3210.7,0.57263684]
[1642472535267,0.00113685,3211.1,3210.7,0.57263684]
[1642472535470,0.00113685,3211.1,3210.7,0.44813684]
[1642472535668,0.00284212,3211.4,3210.7,0.44813684]
[1642472535868,0.00284212,3211.4,3210.7,0.74813684]
[1642472536076,0.0022737,3211.3,3210.7,0.74813684]
[1642472536273,0.0022737,3211.3,3210.8,0.1245]
[1642472536476,0.00170527,3211.2,3210.8,0.1245]
[1642472536774,0.00113685,3211.1,3210.8,0.1245]
[1642472537173,0.0022737,3211.3,3210.8,0.1245]
[1642472537474,0.00170527,3211.2,3210.8,0.1245]
[1642472537917,0.00113685,3211.1,3210.8,0.1245]
[1642472538318,1.53786052,3211.5,3210.8,0.1245]
[1642472538319,0.00284212,3211.4,3210.8,0.1245]
[1642472538515,0.00284212,3211.4,3210.8,1.82799009]
[1642472538717,0.0022737,3211.3,3210.8,0.1245]
[1642472539115,0.00170527,3211.2,3210.8,0.1245]
[1642472539518,0.00113685,3211.1,3210.8,0.1245]
[1642472539918,0.00284212,3211.4,3210.9,0.00801232]
[1642472540320,0.0022737,3211.3,3210.9,0.00801232]
[1642472540723,0.00170527,3211.2,3210.9,0.00801232]
[1642472541022,0.00113685,3211.1,3210.9,0.00801232]
[1642472541471,0.00284212,3211.4,3210.9,0.00801232]
[1642472541772,0.0022737,3211.3,3210.9,0.00801232]
[1642472542171,0.00170527,3211.2,3210.9,0.00801232]
[1642472542572,0.00113685,3211.1,3210.9,0.00801232]
[1642472542973,0.00284212,3211.4,3210.9,0.00801232]
[1642472543373,0.0022737,3211.3,3210.9,0.00801232]
[1642472543775,0.00170527,3211.2,3210.9,0.00801232]
[1642472544172,4.20341976,3211.6,3210.9,0.00801232]
[1642472544173,0.00113685,3211.1,3210.9,0.00801232]
[1642472544673,1.54127107,3211.5,3210.9,0.00801232]
[1642472545128,0.00284212,3211.4,3210.7,0.747]
[1642472545322,0.00284212,3211.4,3210.8,1.76654632]
[1642472545522,0.0022737,3211.3,3210.7,0.747]
[1642472546021,0.00170527,3211.2,3210.7,0.747]
[1642472546425,0.00113685,3211.1,3210.7,0.747]
[1642472546623,0.00113685,3211.1,3210.8,0.1245]
[1642472546822,0.00284212,3211.4,3210.8,0.1245]
[1642472547025,1.54070264,3211.4,3210.8,0.1245]
[1642472547226,0.0022737,3211.3,3210.8,0.1245]
[1642472547625,0.00170527,3211.2,3210.8,0.1245]
[1642472548027,0.00113685,3211.1,3210.8,0.1245]
[1642472548227,0.00113685,3211.1,3210.7,0.5715]
[1642472548427,4.20683031,3211.5,3210.7,0.5715]
[1642472548871,0.00284212,3211.4,3210.7,0.5715]
[1642472549071,1.54070264,3211.4,3210.7,0.5715]
[1642472549270,0.0022737,3211.3,3210.7,0.5715]
[1642472549670,0.00170527,3211.2,3210.7,0.5715]
[1642472549874,0.00170527,3211.2,3210.8,0.00800743]
[1642472550071,0.00113685,3211.1,3210.8,0.00800743]
[1642472550474,0.0022737,3211.3,3210.8,0.00800743]
[1642472550673,1.54013422,3211.3,3210.8,0.00800743]
[1642472550874,0.00170527,3211.2,3210.8,0.00800743]
[1642472551275,0.00113685,3211.1,3210.8,0.00800743]
[1642472551677,0.00170527,3211.2,3210.8,0.00800743]
[1642472552075,0.00113685,3211.1,3210.8,0.00800743]
[1642472552477,0.00170527,3211.2,3210.8,0.00800743]
[1642472552931,0.00113685,3211.1,3210.8,0.00800743]
[1642472553334,0.00170527,3211.2,3210.8,0.00800743]
[1642472553734,0.00113685,3211.1,3210.8,0.00800743]
[1642472554139,0.00170527,3211.2,3210.8,0.00800743]
[1642472554537,0.00113685,3211.1,3210.8,0.00800743]
[1642472554938,0.00170527,3211.2,3210.7,0.447]
[1642472555340,0.00113685,3211.1,3210.7,0.447]
[1642472555638,1.53786052,3211.3,3210.7,0.447]
[1642472555639,0.00170527,3211.2,3210.7,0.447]
[1642472555837,0.00170527,3211.2,3210.7,0.747]
[1642472556037,0.00113685,3211.1,3210.7,0.747]
[1642472556467,0.00170527,3211.2,3210.7,0.747]
[1642472556667,0.00170527,3211.2,3210.7,0.447]
[1642472556869,0.00113685,3211.1,3210.7,0.447]
[1642472557269,0.00170527,3211.2,3210.7,0.447]
[1642472557670,1.53786052,3211.3,3210.7,0.447]
[1642472557671,0.00113685,3211.1,3210.7,0.447]
[1642472558067,0.00170527,3211.2,3210.7,0.447]
[1642472558268,0.00170527,3211.2,3210.6,0.00801721]
[1642472558470,1.49483002,3210.8,3210.6,0.00801721]
[1642472558869,0.1245,3211.1,3210.6,0.00801721]
[1642472560115,2.66555924,3211.0,3210.6,0.00801721]
[1642472561919,2.66555924,3211.0,3210.7,0.1245]
[1642472564269,2.66555924,3211.0,3210.6,0.00801721]
[1642472564469,2.66555924,3211.0,3210.6,0.45501721]
[1642472564669,2.66555924,3211.0,3210.7,1.93740824]
[1642472565069,2.66555924,3211.0,3210.8,0.00801566]
[1642472567072,2.66555924,3211.0,3210.9,0.1245]
[1642472567475,0.00170527,3211.2,3210.9,0.1245]
[1642472567916,0.00113685,3211.1,3210.9,0.1245]
[1642472570922,0.00113685,3211.1,3211.0,1.44471018]
[1642472571123,0.00113685,3211.1,3211.0,4.17270624]
[1642472573278,0.00113685,3211.1,3211.0,2.72799606]
[1642472573479,0.00113685,3211.1,3211.0,0.747]
[1642472573680,0.00113685,3211.1,3211.0,2.54139398]
[1642472573880,0.00113685,3211.1,3211.0,0.747]
[1642472576043,0.00113685,3211.1,3211.0,2.54458214]
[1642472576240,0.00113685,3211.1,3211.0,0.747]
[1642472576444,0.00113685,3211.1,3211.0,2.53080431]
[1642472576646,0.00113685,3211.1,3211.0,2.54329629]
[1642472577043,0.00113685,3211.1,3211.0,0.747]
[1642472577444,0.00113685,3211.1,3211.0,2.53175199]
[1642472577649,0.00113685,3211.1,3211.0,0.747]
[1642472582178,0.00113685,3211.1,3211.0,2.52668655]
[1642472582478,0.00113685,3211.1,3211.0,0.747]
[1642472583518,0.00113685,3211.1,3211.0,0.78060828]
[1642472583719,0.00113685,3211.1,3211.0,0.747]
[1642472583919,0.00113685,3211.1,3211.0,0.78525442]
[1642472584120,0.00113685,3211.1,3211.0,0.747]
[1642472584320,0.00113685,3211.1,3211.0,0.7816988]
[1642472584520,0.00113685,3211.1,3211.0,2.5449629]
[1642472584722,0.00113685,3211.1,3211.0,0.747]
[1642472584921,0.00113685,3211.1,3211.0,2.55502073]
[1642472585224,0.00113685,3211.1,3211.0,0.747]
[1642472586673,0.00113685,3211.1,3211.0,2.53738112]